[Event "Early-Titled-Tuesday-Blitz-March-26-2024"]
[Site "Chess.com"]
[Date "2024.03.26"]
[Round "5"]
[White "Yaacovn"]
[Black "Gurvich_Vitaly"]
[Result "1/2-1/2"]
[WhiteElo "2899"]
[BlackElo "2713"]
[TimeControl "180+1"]
[EndTime "8:56:36 PDT"]
[Termination "Game drawn by repetition"]

1. d4 {[%clk 0:01:47.9]} 1... Nf6 {[%clk 0:02:59.5]} 2. e3 {[%clk 0:01:46.3]}
2... g6 {[%clk 0:02:59.4]} 3. Nf3 {[%clk 0:01:46]} 3... Bg7 {[%clk 0:03:00]} 4.
Be2 {[%clk 0:01:46.1]} 4... O-O {[%clk 0:03:00.6]} 5. O-O {[%clk 0:01:46.6]}
5... d6 {[%clk 0:03:01.5]} 6. b3 {[%clk 0:01:46.5]} 6... Nbd7 {[%clk 0:03:00.8]}
7. Bb2 {[%clk 0:01:46.5]} 7... b6 {[%clk 0:03:01.1]} 8. c4 {[%clk 0:01:46.5]}
8... e6 {[%clk 0:03:01.6]} 9. Qc2 {[%clk 0:01:38.8]} 9... Bb7 {[%clk 0:03:02.1]}
10. Nc3 {[%clk 0:01:14.3]} 10... a6 {[%clk 0:03:00.2]} 11. Rad1 {[%clk 0:00:44]}
11... Qe7 {[%clk 0:02:59]} 12. Nd2 {[%clk 0:00:44]} 12... Rad8 {[%clk
0:02:42.1]} 13. Bf3 {[%clk 0:00:30.5]} 13... d5 {[%clk 0:02:38.4]} 14. cxd5
{[%clk 0:00:28.1]} 14... exd5 {[%clk 0:02:39.3]} 15. Rc1 {[%clk 0:00:28.2]}
15... Rc8 {[%clk 0:02:35]} 16. Qb1 {[%clk 0:00:27.9]} 16... Rfd8 {[%clk
0:02:34.2]} 17. Rfd1 {[%clk 0:00:27.7]} 17... Ba8 {[%clk 0:02:32.1]} 18. h3
{[%clk 0:00:27.9]} 18... Nf8 {[%clk 0:02:31.7]} 19. a3 {[%clk 0:00:27.9]} 19...
Ne6 {[%clk 0:02:30.8]} 20. b4 {[%clk 0:00:28]} 20... h5 {[%clk 0:02:30.7]} 21.
Be2 {[%clk 0:00:28]} 21... Bb7 {[%clk 0:02:27.9]} 22. Nf3 {[%clk 0:00:28]} 22...
c5 {[%clk 0:01:45.8]} 23. dxc5 {[%clk 0:00:26.5]} 23... bxc5 {[%clk 0:01:46.7]}
24. bxc5 {[%clk 0:00:26.8]} 24... Nxc5 {[%clk 0:01:47.6]} 25. Nd4 {[%clk
0:00:23.7]} 25... Re8 {[%clk 0:01:44.4]} 26. a4 {[%clk 0:00:23.4]} 26... Nce4
{[%clk 0:01:40.3]} 27. Nxe4 {[%clk 0:00:22.9]} 27... Nxe4 {[%clk 0:01:41.2]} 28.
Bf3 {[%clk 0:00:21.8]} 28... Ng5 {[%clk 0:01:01.2]} 29. Be2 {[%clk 0:00:19.8]}
29... Ne4 {[%clk 0:00:48.3]} 30. Rxc8 {[%clk 0:00:18.9]} 30... Rxc8 {[%clk
0:00:49.2]} 31. Bf3 {[%clk 0:00:19.2]} 31... Ng5 {[%clk 0:00:46.3]} 32. Be2
{[%clk 0:00:19.2]} 32... Ne4 {[%clk 0:00:45.5]} 33. Bd3 {[%clk 0:00:19.2]} 33...
Nc3 {[%clk 0:00:33.3]} 34. Bxc3 {[%clk 0:00:18.5]} 34... Rxc3 {[%clk 0:00:34.2]}
35. Be2 {[%clk 0:00:17.4]} 35... Qc7 {[%clk 0:00:29.8]} 36. Bf1 {[%clk
0:00:15.8]} 36... Bf6 {[%clk 0:00:27.9]} 37. Qb2 {[%clk 0:00:15.5]} 37... Kg7
{[%clk 0:00:24.1]} 38. Qd2 {[%clk 0:00:15.3]} 38... Qc5 {[%clk 0:00:18.5]} 39.
Rb1 {[%clk 0:00:13.6]} 39... Bc8 {[%clk 0:00:18.3]} 40. Ne2 {[%clk 0:00:12.4]}
40... Rc2 {[%clk 0:00:18.5]} 41. Qd1 {[%clk 0:00:12.5]} 41... Bf5 {[%clk
0:00:17.6]} 42. Ng3 {[%clk 0:00:12.5]} 42... Be6 {[%clk 0:00:17.2]} 43. Bd3
{[%clk 0:00:12]} 43... Ra2 {[%clk 0:00:17.3]} 44. Rc1 {[%clk 0:00:11.6]} 44...
Qa3 {[%clk 0:00:15.7]} 45. Be2 {[%clk 0:00:11.4]} 45... Qb2 {[%clk 0:00:15.7]}
46. Rb1 {[%clk 0:00:10.3]} 46... Qc2 {[%clk 0:00:15.2]} 47. Qxc2 {[%clk
0:00:10.4]} 47... Rxc2 {[%clk 0:00:16.1]} 48. Bf3 {[%clk 0:00:11.2]} 48... h4
{[%clk 0:00:16.2]} 49. Ne2 {[%clk 0:00:11.1]} 49... Ra2 {[%clk 0:00:16.8]} 50.
Nf4 {[%clk 0:00:11.4]} 50... Rxa4 {[%clk 0:00:14.7]} 51. Bxd5 {[%clk 0:00:11.5]}
51... Bf5 {[%clk 0:00:14.6]} 52. Rd1 {[%clk 0:00:10.9]} 52... Be5 {[%clk
0:00:14.4]} 53. Ne2 {[%clk 0:00:09.3]} 53... Ra1 {[%clk 0:00:13.7]} 54. Rxa1
{[%clk 0:00:08.8]} 54... Bxa1 {[%clk 0:00:14.6]} 55. Bc4 {[%clk 0:00:09.3]}
55... a5 {[%clk 0:00:14.7]} 56. Nc1 {[%clk 0:00:09.1]} 56... a4 {[%clk
0:00:14.7]} 57. Kf1 {[%clk 0:00:08.2]} 57... a3 {[%clk 0:00:15.3]} 58. Ke2
{[%clk 0:00:08.4]} 58... Bb2 {[%clk 0:00:15.8]} 59. Na2 {[%clk 0:00:08]} 59...
g5 {[%clk 0:00:13.9]} 60. Nb4 {[%clk 0:00:07.9]} 60... g4 {[%clk 0:00:13.1]} 61.
hxg4 {[%clk 0:00:07.4]} 61... Bxg4+ {[%clk 0:00:14]} 62. f3 {[%clk 0:00:07.4]}
62... Bd7 {[%clk 0:00:12.7]} 63. Nd5 {[%clk 0:00:06.8]} 63... Be6 {[%clk
0:00:12]} 64. e4 {[%clk 0:00:06.6]} 64... Kh6 {[%clk 0:00:11.2]} 65. f4 {[%clk
0:00:06]} 65... Kh5 {[%clk 0:00:11.5]} 66. Kf3 {[%clk 0:00:04.6]} 66... Bg4+
{[%clk 0:00:09.7]} 67. Ke3 {[%clk 0:00:04.7]} 67... Be6 {[%clk 0:00:10.2]} 68.
Kf3 {[%clk 0:00:04.4]} 68... h3 {[%clk 0:00:07.5]} 69. gxh3 {[%clk 0:00:04]}
69... Kh4 {[%clk 0:00:08]} 70. f5 {[%clk 0:00:03.8]} 70... Bxd5 {[%clk
0:00:07.2]} 71. Bxd5 {[%clk 0:00:04.7]} 71... f6 {[%clk 0:00:07.7]} 72. Kg2
{[%clk 0:00:04.5]} 72... Be5 {[%clk 0:00:07.4]} 73. Ba2 {[%clk 0:00:04]} 73...
Bd4 {[%clk 0:00:06.7]} 74. Bb3 {[%clk 0:00:03.6]} 74... Be5 {[%clk 0:00:07.6]}
75. Bc4 {[%clk 0:00:03.5]} 75... Bd4 {[%clk 0:00:08]} 76. Ba2 {[%clk 0:00:03.5]}
76... Be5 {[%clk 0:00:08.6]} 77. Bc4 {[%clk 0:00:03.5]} 77... Bc3 {[%clk
0:00:08.3]} 78. Ba2 {[%clk 0:00:03.5]} 78... Kg5 {[%clk 0:00:08.7]} 79. Kf3
{[%clk 0:00:03.2]} 79... Be5 {[%clk 0:00:09]} 80. Bb3 {[%clk 0:00:03]} 80... Kh4
{[%clk 0:00:09.3]} 81. Kg2 {[%clk 0:00:03.2]} 81... Bf4 {[%clk 0:00:09]} 82. Ba2
{[%clk 0:00:03.1]} 82... Bd6 {[%clk 0:00:09.2]} 83. Bb3 {[%clk 0:00:04]} 83...
Bc7 {[%clk 0:00:09.7]} 84. Ba2 {[%clk 0:00:04.2]} 84... Bd8 {[%clk 0:00:09]} 85.
Bd5 {[%clk 0:00:04.6]} 85... Bc7 {[%clk 0:00:09.1]} 86. Kf3 {[%clk 0:00:05]}
86... Be5 {[%clk 0:00:09.6]} 87. Ke2 {[%clk 0:00:05.5]} 87... Kxh3 {[%clk
0:00:10.1]} 88. Kd3 {[%clk 0:00:05.7]} 88... Kg4 {[%clk 0:00:10.2]} 89. Kc2
{[%clk 0:00:06.1]} 89... Kf4 {[%clk 0:00:10.3]} 90. Kb3 {[%clk 0:00:06.3]} 90...
Bd6 {[%clk 0:00:10.3]} 91. Ka2 {[%clk 0:00:06.3]} 91... Ke5 {[%clk 0:00:11]} 92.
Be6 {[%clk 0:00:06.4]} 92... Kd4 {[%clk 0:00:11.3]} 93. Kb3 {[%clk 0:00:07.3]}
93... Kd3 {[%clk 0:00:10.9]} 94. Bd5 {[%clk 0:00:07.3]} 94... Kd2 {[%clk
0:00:10.7]} 95. Ka2 {[%clk 0:00:08.2]} 95... Kc1 {[%clk 0:00:10.9]} 96. Ba8
{[%clk 0:00:09.1]} 96... Bc5 {[%clk 0:00:10]} 97. Bd5 {[%clk 0:00:10]} 97... Kd2
{[%clk 0:00:09.4]} 98. Bb7 {[%clk 0:00:10.9]} 98... Ke3 {[%clk 0:00:09.9]} 99.
Bd5 {[%clk 0:00:11.8]} 99... Kf4 {[%clk 0:00:10.5]} 100. Kb3 {[%clk 0:00:11.8]}
100... Ke5 {[%clk 0:00:11]} 101. Ka2 {[%clk 0:00:12.7]} 101... Bd6 {[%clk
0:00:11.6]} 102. Kb3 {[%clk 0:00:13.6]} 102... Be7 {[%clk 0:00:12]} 103. Ka2
{[%clk 0:00:14.5]} 103... Bf8 {[%clk 0:00:12.9]} 104. Kb3 {[%clk 0:00:15.2]}
104... Be7 {[%clk 0:00:13.6]} 105. Ka2 {[%clk 0:00:16.1]} 105... Bf8 {[%clk
0:00:14.5]} 106. Kb3 {[%clk 0:00:16.9]} 106... Be7 {[%clk 0:00:15.4]} 1/2-1/2

[Event "Early-Titled-Tuesday-Blitz-March-26-2024"]
[Site "Chess.com"]
[Date "2024.03.26"]
[Round "5"]
[White "Dixit_Nikhil"]
[Black "Zohid6"]
[Result "1/2-1/2"]
[WhiteElo "2644"]
[BlackElo "2907"]
[TimeControl "180+1"]
[EndTime "8:57:01 PDT"]
[Termination "Game drawn by repetition"]

1. e4 {[%clk 0:02:55.1]} 1... e5 {[%clk 0:03:00]} 2. Nf3 {[%clk 0:02:55]} 2...
Nf6 {[%clk 0:03:00.1]} 3. Nc3 {[%clk 0:02:51.3]} 3... Nc6 {[%clk 0:02:59.8]} 4.
d4 {[%clk 0:02:51.5]} 4... exd4 {[%clk 0:03:00.7]} 5. Nxd4 {[%clk 0:02:52.1]}
5... Bb4 {[%clk 0:03:01.1]} 6. Nxc6 {[%clk 0:02:52.8]} 6... bxc6 {[%clk
0:03:02]} 7. Bd3 {[%clk 0:02:53.5]} 7... d5 {[%clk 0:03:02.3]} 8. exd5 {[%clk
0:02:54.3]} 8... O-O {[%clk 0:03:02.4]} 9. O-O {[%clk 0:02:54.4]} 9... cxd5
{[%clk 0:03:02.6]} 10. Bg5 {[%clk 0:02:54.3]} 10... c6 {[%clk 0:03:00.4]} 11.
Qf3 {[%clk 0:02:54.4]} 11... h6 {[%clk 0:03:00.1]} 12. Bxf6 {[%clk 0:02:54.1]}
12... Qxf6 {[%clk 0:03:01]} 13. Qxf6 {[%clk 0:02:54.6]} 13... gxf6 {[%clk
0:03:01.4]} 14. Nd1 {[%clk 0:02:55.5]} 14... Re8 {[%clk 0:02:54.9]} 15. Ne3
{[%clk 0:02:55.7]} 15... Rb8 {[%clk 0:02:55]} 16. Nf5 {[%clk 0:02:55.5]} 16...
Bf8 {[%clk 0:02:52]} 17. b3 {[%clk 0:02:54.8]} 17... Re5 {[%clk 0:02:51.6]} 18.
Ne3 {[%clk 0:02:50.5]} 18... a5 {[%clk 0:02:42.6]} 19. a4 {[%clk 0:02:50]} 19...
Bb4 {[%clk 0:02:39.8]} 20. h3 {[%clk 0:02:45.8]} 20... Bd2 {[%clk 0:02:34.7]}
21. Rad1 {[%clk 0:02:37.5]} 21... Bc3 {[%clk 0:02:23.8]} 22. Ng4 {[%clk
0:02:34.6]} 22... Bxg4 {[%clk 0:02:23.5]} 23. hxg4 {[%clk 0:02:35.5]} 23... Rbe8
{[%clk 0:02:23.8]} 24. g3 {[%clk 0:02:34.6]} 24... Kg7 {[%clk 0:02:22.7]} 25.
Kg2 {[%clk 0:02:34.8]} 25... R8e7 {[%clk 0:02:03.7]} 26. Rh1 {[%clk 0:02:34]}
26... Be1 {[%clk 0:02:01.9]} 27. Kf3 {[%clk 0:02:29.2]} 27... c5 {[%clk
0:01:57.6]} 28. Rh5 {[%clk 0:02:22.5]} 28... Rxh5 {[%clk 0:01:51.5]} 29. gxh5
{[%clk 0:02:22.4]} 29... Re5 {[%clk 0:01:51.1]} 30. g4 {[%clk 0:02:18.3]} 30...
Kf8 {[%clk 0:01:48.8]} 31. Bb5 {[%clk 0:02:08.5]} 31... Bc3 {[%clk 0:01:43.7]}
32. Bc6 {[%clk 0:02:05.4]} 32... d4 {[%clk 0:01:41.9]} 33. Be4 {[%clk
0:02:05.5]} 33... Ke7 {[%clk 0:01:40.7]} 34. Bd3 {[%clk 0:02:04.6]} 34... Kd6
{[%clk 0:01:40.2]} 35. Rg1 {[%clk 0:02:02.8]} 35... Re7 {[%clk 0:01:24.9]} 36.
Rf1 {[%clk 0:02:00.8]} 36... Kd5 {[%clk 0:01:17]} 37. Bc4+ {[%clk 0:01:59.1]}
37... Kd6 {[%clk 0:01:15.8]} 38. Bd3 {[%clk 0:01:59.8]} 38... Re5 {[%clk
0:01:13.7]} 39. Kg2 {[%clk 0:01:57.2]} 39... Bd2 {[%clk 0:01:03.8]} 40. Rh1
{[%clk 0:01:46]} 40... Re7 {[%clk 0:01:00.4]} 41. Rh3 {[%clk 0:01:45.6]} 41...
Bf4 {[%clk 0:00:59.3]} 42. Rf3 {[%clk 0:01:44]} 42... Ke5 {[%clk 0:00:59.4]} 43.
Bc4 {[%clk 0:01:42.1]} 43... f5 {[%clk 0:00:55.2]} 44. gxf5 {[%clk 0:01:33.5]}
44... Kxf5 {[%clk 0:00:56.1]} 45. Rh3 {[%clk 0:01:18.5]} 45... Kg4 {[%clk
0:00:55.4]} 46. Rh1 {[%clk 0:01:14.8]} 46... f5 {[%clk 0:00:53.6]} 47. Kf1
{[%clk 0:01:06.3]} 47... Bg5 {[%clk 0:00:46.9]} 48. Be2+ {[%clk 0:01:01.4]}
48... Kf4 {[%clk 0:00:46.7]} 49. Rh3 {[%clk 0:01:00.6]} 49... Ke5 {[%clk
0:00:42.8]} 50. Rf3 {[%clk 0:00:59.9]} 50... Bf4 {[%clk 0:00:42.8]} 51. Bd3
{[%clk 0:00:59.9]} 51... Rg7 {[%clk 0:00:42.7]} 52. Rh3 {[%clk 0:00:59.4]} 52...
Rg5 {[%clk 0:00:39.2]} 53. Ke2 {[%clk 0:00:59.4]} 53... Rg4 {[%clk 0:00:37.3]}
54. Kf3 {[%clk 0:00:59.3]} 54... Kf6 {[%clk 0:00:34.9]} 55. Rh1 {[%clk
0:00:57.3]} 55... Be5 {[%clk 0:00:35.1]} 56. Rh3 {[%clk 0:00:56.1]} 56... Kg5
{[%clk 0:00:34.6]} 57. Ke2 {[%clk 0:00:55.6]} 57... Rg1 {[%clk 0:00:34]} 58. Rf3
{[%clk 0:00:52.4]} 58... f4 {[%clk 0:00:32.3]} 59. Rh3 {[%clk 0:00:52.1]} 59...
Kg4 {[%clk 0:00:32.2]} 60. Rf3 {[%clk 0:00:48]} 60... Kxh5 {[%clk 0:00:23]} 61.
Rh3+ {[%clk 0:00:46.7]} 61... Kg5 {[%clk 0:00:22.9]} 62. Kf3 {[%clk 0:00:47]}
62... h5 {[%clk 0:00:22.2]} 63. Rh2 {[%clk 0:00:47]} 63... Rg4 {[%clk
0:00:17.1]} 64. Rg2 {[%clk 0:00:45.4]} 64... Bd6 {[%clk 0:00:11.4]} 65. Bb5
{[%clk 0:00:42.7]} 65... Rxg2 {[%clk 0:00:08.6]} 66. Kxg2 {[%clk 0:00:42.6]}
66... Kf5 {[%clk 0:00:08]} 67. Bd3+ {[%clk 0:00:42.1]} 67... Ke5 {[%clk
0:00:07.9]} 68. f3 {[%clk 0:00:40.8]} 68... Be7 {[%clk 0:00:07]} 69. Kh3 {[%clk
0:00:40.9]} 69... h4 {[%clk 0:00:04.8]} 70. Kg4 {[%clk 0:00:40.6]} 70... Bd8
{[%clk 0:00:04.1]} 71. Kh3 {[%clk 0:00:40.9]} 71... Be7 {[%clk 0:00:03.5]} 72.
Kg2 {[%clk 0:00:41.3]} 72... Kf6 {[%clk 0:00:03.4]} 73. Bf1 {[%clk 0:00:41.2]}
73... Kg5 {[%clk 0:00:04.3]} 74. Kf2 {[%clk 0:00:41.2]} 74... Bd6 {[%clk
0:00:04.2]} 75. Bh3 {[%clk 0:00:41.1]} 75... d3 {[%clk 0:00:03.2]} 76. cxd3
{[%clk 0:00:41.1]} 76... Be5 {[%clk 0:00:03.6]} 77. Ke2 {[%clk 0:00:40.8]} 77...
Bd4 {[%clk 0:00:04.2]} 78. Bg4 {[%clk 0:00:39.6]} 78... Kf6 {[%clk 0:00:04.4]}
79. Bh3 {[%clk 0:00:40]} 79... Be3 {[%clk 0:00:03.9]} 80. d4 {[%clk 0:00:37.3]}
80... cxd4 {[%clk 0:00:02.5]} 81. Kd3 {[%clk 0:00:37.7]} 81... Ke5 {[%clk
0:00:03]} 82. Kc4 {[%clk 0:00:37.8]} 82... Kd6 {[%clk 0:00:02.8]} 83. Bg4 {[%clk
0:00:37.9]} 83... Kc6 {[%clk 0:00:02.8]} 84. Bh3 {[%clk 0:00:38.3]} 84... Kb6
{[%clk 0:00:03.1]} 85. Bg4 {[%clk 0:00:38.7]} 85... Bf2 {[%clk 0:00:02.9]} 86.
Bh3 {[%clk 0:00:38.8]} 86... d3 {[%clk 0:00:03.4]} 87. Kxd3 {[%clk 0:00:38.5]}
87... Kc5 {[%clk 0:00:04]} 88. Bg4 {[%clk 0:00:38.8]} 88... Kb4 {[%clk
0:00:03.9]} 89. Kc2 {[%clk 0:00:39.1]} 89... Bd4 {[%clk 0:00:03.8]} 90. Bh3
{[%clk 0:00:39.3]} 90... Bf6 {[%clk 0:00:04.3]} 91. Bg4 {[%clk 0:00:39.7]} 91...
Bc3 {[%clk 0:00:03.8]} 92. Be6 {[%clk 0:00:37.2]} 92... Be1 {[%clk 0:00:03.7]}
93. Kd3 {[%clk 0:00:36.7]} 93... Ka3 {[%clk 0:00:03]} 94. Kc2 {[%clk 0:00:27.9]}
94... Kb4 {[%clk 0:00:03]} 95. Bh3 {[%clk 0:00:28]} 95... Bg3 {[%clk 0:00:03.6]}
96. Bg4 {[%clk 0:00:28.1]} 96... Kc5 {[%clk 0:00:04.1]} 97. Kd3 {[%clk
0:00:28.1]} 97... Kb4 {[%clk 0:00:04.8]} 98. Kc2 {[%clk 0:00:27.9]} 98... Bf2
{[%clk 0:00:05.5]} 99. Bh3 {[%clk 0:00:27.9]} 99... Bd4 {[%clk 0:00:05.8]} 100.
Bg4 {[%clk 0:00:28]} 100... Bh8 {[%clk 0:00:05.9]} 101. Bh3 {[%clk 0:00:28.3]}
101... Kc5 {[%clk 0:00:06.3]} 102. Kd3 {[%clk 0:00:28.3]} 102... Kb4 {[%clk
0:00:06.9]} 103. Kc2 {[%clk 0:00:28.6]} 103... Bd4 {[%clk 0:00:06.9]} 104. Bg4
{[%clk 0:00:28.7]} 104... Be3 {[%clk 0:00:07.8]} 105. Bh3 {[%clk 0:00:29]}
105... Kc5 {[%clk 0:00:08.2]} 106. Kd3 {[%clk 0:00:28.5]} 106... Kd5 {[%clk
0:00:08.9]} 107. Bg4 {[%clk 0:00:28.4]} 107... Bc5 {[%clk 0:00:09.4]} 108. Bh3
{[%clk 0:00:28.3]} 108... Bb4 {[%clk 0:00:10.1]} 109. Bg4 {[%clk 0:00:28.3]}
109... Ke5 {[%clk 0:00:11]} 110. Kc4 {[%clk 0:00:27.9]} 110... Be1 {[%clk
0:00:09.9]} 111. Bh3 {[%clk 0:00:28]} 111... Bb4 {[%clk 0:00:09.7]} 112. Bg4
{[%clk 0:00:28.4]} 112... Kf6 {[%clk 0:00:08.9]} 113. Bh3 {[%clk 0:00:28.4]}
113... Kg5 {[%clk 0:00:08.9]} 114. Bg4 {[%clk 0:00:28.8]} 114... Kf6 {[%clk
0:00:08.7]} 115. Bh3 {[%clk 0:00:29]} 115... Ke5 {[%clk 0:00:09.4]} 116. Bg4
{[%clk 0:00:29.2]} 1/2-1/2

[Event "Early-Titled-Tuesday-Blitz-March-26-2024"]
[Site "Chess.com"]
[Date "2024.03.26"]
[Round "5"]
[White "BallottiLuca"]
[Black "Statham_01"]
[Result "1/2-1/2"]
[WhiteElo "2364"]
[BlackElo "2566"]
[TimeControl "180+1"]
[EndTime "8:57:16 PDT"]
[Termination "Game drawn by repetition"]

1. e4 {[%clk 0:02:44.3]} 1... e5 {[%clk 0:03:00.9]} 2. Nc3 {[%clk 0:02:39.8]}
2... Nf6 {[%clk 0:03:00.6]} 3. f4 {[%clk 0:02:35.5]} 3... d5 {[%clk 0:03:00.4]}
4. fxe5 {[%clk 0:02:34.2]} 4... Nxe4 {[%clk 0:03:00.6]} 5. Qf3 {[%clk
0:02:34.5]} 5... Nc6 {[%clk 0:03:00.6]} 6. Bb5 {[%clk 0:02:31.7]} 6... Nxc3
{[%clk 0:03:00.7]} 7. dxc3 {[%clk 0:02:29.2]} 7... Qh4+ {[%clk 0:03:00.9]} 8. g3
{[%clk 0:02:28.5]} 8... Qe4+ {[%clk 0:03:01.3]} 9. Qxe4 {[%clk 0:02:27.8]} 9...
dxe4 {[%clk 0:03:02.2]} 10. Bxc6+ {[%clk 0:02:26.1]} 10... bxc6 {[%clk
0:03:03.1]} 11. Be3 {[%clk 0:02:21.8]} 11... Be6 {[%clk 0:02:59.1]} 12. Ne2
{[%clk 0:02:17.2]} 12... g6 {[%clk 0:02:54.9]} 13. Nd4 {[%clk 0:02:17]} 13...
Bd7 {[%clk 0:02:54.6]} 14. Nb3 {[%clk 0:02:08.6]} 14... Bg7 {[%clk 0:02:49]} 15.
Bd4 {[%clk 0:02:06.7]} 15... O-O {[%clk 0:02:47.6]} 16. Nc5 {[%clk 0:02:02.6]}
16... Bg4 {[%clk 0:02:46.8]} 17. O-O {[%clk 0:01:55.9]} 17... Bf5 {[%clk
0:02:15.1]} 18. Rae1 {[%clk 0:01:53.8]} 18... Rab8 {[%clk 0:02:08.2]} 19. b4
{[%clk 0:01:51.5]} 19... a5 {[%clk 0:01:59.5]} 20. a3 {[%clk 0:01:50.1]} 20...
axb4 {[%clk 0:01:51.1]} 21. cxb4 {[%clk 0:01:46.8]} 21... Rfd8 {[%clk
0:01:50.7]} 22. c3 {[%clk 0:01:45.5]} 22... Ra8 {[%clk 0:01:41.9]} 23. a4 {[%clk
0:01:45.5]} 23... Bf8 {[%clk 0:01:40.2]} 24. Nxe4 {[%clk 0:01:26.8]} 24... Rxa4
{[%clk 0:01:27.8]} 25. g4 {[%clk 0:01:16.1]} 25... Bxe4 {[%clk 0:01:12.2]} 26.
Rxe4 {[%clk 0:01:17]} 26... c5 {[%clk 0:00:57.2]} 27. bxc5 {[%clk 0:01:16.5]}
27... Bxc5 {[%clk 0:00:53.1]} 28. Ref4 {[%clk 0:01:16.9]} 28... Bxd4+ {[%clk
0:00:52]} 29. cxd4 {[%clk 0:01:17.8]} 29... Rd7 {[%clk 0:00:41.3]} 30. Rc1
{[%clk 0:00:28.5]} 30... Raxd4 {[%clk 0:00:36.6]} 31. Rxd4 {[%clk 0:00:28.3]}
31... Rxd4 {[%clk 0:00:37.5]} 32. h3 {[%clk 0:00:17.6]} 32... Re4 {[%clk
0:00:37.4]} 33. Rxc7 {[%clk 0:00:16.2]} 33... Rxe5 {[%clk 0:00:37.3]} 34. Kg2
{[%clk 0:00:16.5]} 34... Re3 {[%clk 0:00:36.6]} 35. Ra7 {[%clk 0:00:15.1]} 35...
Kg7 {[%clk 0:00:36.5]} 36. Ra6 {[%clk 0:00:15.6]} 36... Rb3 {[%clk 0:00:35]} 37.
Rc6 {[%clk 0:00:14.7]} 37... Rd3 {[%clk 0:00:33.9]} 38. Ra6 {[%clk 0:00:14.6]}
38... Kh6 {[%clk 0:00:33.7]} 39. Ra5 {[%clk 0:00:14.3]} 39... Rc3 {[%clk
0:00:32.1]} 40. Rb5 {[%clk 0:00:13.4]} 40... Ra3 {[%clk 0:00:28.1]} 41. Rc5
{[%clk 0:00:12.8]} 41... Kg7 {[%clk 0:00:28.1]} 42. Rc6 {[%clk 0:00:12.6]} 42...
h6 {[%clk 0:00:27.3]} 43. Rb6 {[%clk 0:00:12.5]} 43... Re3 {[%clk 0:00:22.6]}
44. Rc6 {[%clk 0:00:12.8]} 44... Re6 {[%clk 0:00:22.4]} 45. Rc7 {[%clk
0:00:12.4]} 45... Kf6 {[%clk 0:00:22.3]} 46. Ra7 {[%clk 0:00:12.9]} 46... Re5
{[%clk 0:00:20.5]} 47. Rb7 {[%clk 0:00:11.8]} 47... Re2+ {[%clk 0:00:19.1]} 48.
Kg3 {[%clk 0:00:09.8]} 48... Re3+ {[%clk 0:00:19.1]} 49. Kg2 {[%clk 0:00:10]}
49... Rc3 {[%clk 0:00:20]} 50. Ra7 {[%clk 0:00:09.1]} 50... Kg5 {[%clk
0:00:15.2]} 51. Rxf7 {[%clk 0:00:08.1]} 51... Kh4 {[%clk 0:00:15.4]} 52. Rh7
{[%clk 0:00:05]} 52... Rc2+ {[%clk 0:00:07]} 53. Kf3 {[%clk 0:00:04.2]} 53... h5
{[%clk 0:00:05.2]} 54. gxh5 {[%clk 0:00:03.9]} 54... gxh5 {[%clk 0:00:05.1]} 55.
Rg7 {[%clk 0:00:02.9]} 55... Rc3+ {[%clk 0:00:05.3]} 56. Kg2 {[%clk 0:00:02.7]}
56... Rxh3 {[%clk 0:00:04.3]} 57. Rf7 {[%clk 0:00:02]} 57... Rg3+ {[%clk
0:00:04.5]} 58. Kh2 {[%clk 0:00:02]} 58... Rg4 {[%clk 0:00:05.4]} 59. Rf6 {[%clk
0:00:01.9]} 59... Rc4 {[%clk 0:00:05.5]} 60. Ra6 {[%clk 0:00:02.4]} 60... Rc2+
{[%clk 0:00:05.5]} 61. Kh1 {[%clk 0:00:02.1]} 61... Kg3 {[%clk 0:00:05.5]} 62.
Ra3+ {[%clk 0:00:01.4]} 62... Kg4 {[%clk 0:00:05.3]} 63. Ra1 {[%clk 0:00:02.3]}
63... h4 {[%clk 0:00:04.6]} 64. Rg1+ {[%clk 0:00:02.5]} 64... Kh3 {[%clk
0:00:04.4]} 65. Ra1 {[%clk 0:00:03.4]} 65... Rh2+ {[%clk 0:00:04.4]} 66. Kg1
{[%clk 0:00:02.9]} 66... Rg2+ {[%clk 0:00:05.3]} 67. Kh1 {[%clk 0:00:03.2]}
67... Rf2 {[%clk 0:00:04.2]} 68. Ra3+ {[%clk 0:00:03.4]} 68... Kg4 {[%clk
0:00:04.2]} 69. Ra1 {[%clk 0:00:04.3]} 69... h3 {[%clk 0:00:03.1]} 70. Rg1+
{[%clk 0:00:04.7]} 70... Kf3 {[%clk 0:00:02.8]} 71. Rb1 {[%clk 0:00:05.6]} 71...
Kg3 {[%clk 0:00:03.1]} 72. Rb3+ {[%clk 0:00:05.5]} 72... Kh4 {[%clk 0:00:03.3]}
73. Rb1 {[%clk 0:00:06.4]} 73... Re2 {[%clk 0:00:03.6]} 74. Ra1 {[%clk
0:00:05.8]} 74... Kg4 {[%clk 0:00:03.7]} 75. Ra4+ {[%clk 0:00:06]} 75... Kg3
{[%clk 0:00:03.8]} 76. Ra1 {[%clk 0:00:06.9]} 76... Re3 {[%clk 0:00:02.3]} 77.
Rb1 {[%clk 0:00:06.9]} 77... Rd3 {[%clk 0:00:02.4]} 78. Ra1 {[%clk 0:00:07.1]}
78... h2 {[%clk 0:00:01.8]} 79. Rb1 {[%clk 0:00:06.8]} 79... Kh3 {[%clk
0:00:02.1]} 80. Ra1 {[%clk 0:00:06.8]} 80... Re3 {[%clk 0:00:02.2]} 81. Rb1
{[%clk 0:00:07.3]} 81... Rc3 {[%clk 0:00:02.4]} 82. Ra1 {[%clk 0:00:07.6]} 82...
Rb3 {[%clk 0:00:02.9]} 83. Rc1 {[%clk 0:00:07.7]} 83... Re3 {[%clk 0:00:03.3]}
84. Ra1 {[%clk 0:00:08]} 84... Rg3 {[%clk 0:00:03.4]} 85. Rc1 {[%clk 0:00:08]}
85... Rb3 {[%clk 0:00:03.5]} 86. Ra1 {[%clk 0:00:08.2]} 86... Rc3 {[%clk
0:00:03.9]} 87. Rb1 {[%clk 0:00:08.2]} 87... Ra3 {[%clk 0:00:03.9]} 88. Rc1
{[%clk 0:00:08.5]} 88... Rd3 {[%clk 0:00:03.6]} 89. Rb1 {[%clk 0:00:08.7]} 89...
Rd6 {[%clk 0:00:02.7]} 90. Rc1 {[%clk 0:00:08.7]} 90... Rf6 {[%clk 0:00:02.4]}
91. Rb1 {[%clk 0:00:09]} 91... Kg3 {[%clk 0:00:02.5]} 92. Rb3+ {[%clk
0:00:08.5]} 92... Kf2 {[%clk 0:00:02.4]} 93. Rb2+ {[%clk 0:00:08.3]} 93... Kf1
{[%clk 0:00:02.2]} 94. Rb1+ {[%clk 0:00:08.4]} 94... Kf2 {[%clk 0:00:02.4]} 95.
Rb2+ {[%clk 0:00:07.9]} 95... Kf3 {[%clk 0:00:02.7]} 96. Rb1 {[%clk 0:00:07.1]}
96... Rg6 {[%clk 0:00:02.5]} 97. Kxh2 {[%clk 0:00:05.2]} 97... Kf2 {[%clk
0:00:02.4]} 98. Rb2+ {[%clk 0:00:04.9]} 98... Kf3 {[%clk 0:00:02.7]} 99. Rb3+
{[%clk 0:00:05.4]} 99... Kf2 {[%clk 0:00:03]} 100. Rb2+ {[%clk 0:00:05.8]}
100... Kf3 {[%clk 0:00:03.4]} 101. Rb3+ {[%clk 0:00:06.3]} 101... Ke2 {[%clk
0:00:03.9]} 102. Rb2+ {[%clk 0:00:06.6]} 102... Kf1 {[%clk 0:00:03.9]} 103. Rb1+
{[%clk 0:00:06.8]} 103... Kf2 {[%clk 0:00:04.2]} 104. Rb2+ {[%clk 0:00:07.7]}
1/2-1/2